bitfinex/quotes_BTCUSD_20241208
["timestamp","ask_amount","ask_price","bid_price","bid_amount"]
[1733638614811,0.0023101,99610.0,99609.0,0.48092055]
[1733638615043,0.0023101,99610.0,99609.0,0.21035037]
[1733638616414,0.0023101,99610.0,99609.0,0.48094325]
[1733638616603,0.0023101,99610.0,99609.0,0.21035037]
[1733638617022,0.0023101,99610.0,99609.0,0.48094325]
[1733638619073,0.0023101,99610.0,99609.0,0.21035037]
[1733638619291,0.0023101,99610.0,99609.0,0.48100999]
[1733638620708,0.0023101,99610.0,99609.0,0.48102347]
[1733638621134,0.0023101,99610.0,99609.0,0.21035037]
[1733638634231,0.0023101,99610.0,99609.0,0.36035037]
[1733638634656,0.0023101,99610.0,99609.0,0.39033781]
[1733638635118,0.0023101,99610.0,99609.0,0.79003691]
[1733638635516,0.0023101,99610.0,99609.0,0.39033781]
[1733638639048,0.0023101,99610.0,99609.0,0.36035037]
[1733638639830,0.0023101,99610.0,99609.0,0.39033781]
[1733638640503,0.0023101,99610.0,99609.0,0.36035037]
[1733638640937,0.0023101,99610.0,99609.0,0.39033835]
[1733638642187,0.0023101,99610.0,99609.0,0.36035037]
[1733638642431,0.0023101,99610.0,99609.0,0.39033753]
[1733638644212,0.0023101,99610.0,99609.0,0.46333753]
[1733638644418,0.0023101,99610.0,99609.0,0.54233753]
[1733638646265,0.0023101,99610.0,99609.0,0.54133753]
[1733638646466,0.0023101,99610.0,99609.0,0.53633753]
[1733638646674,0.0023101,99610.0,99609.0,0.54833753]
[1733638647090,0.0023101,99610.0,99609.0,0.53633753]
[1733638647294,0.0023101,99610.0,99609.0,0.54533753]
[1733638647499,0.0023101,99610.0,99609.0,0.54933753]
[1733638647635,0.0023101,99610.0,99609.0,0.54033753]
[1733638647842,0.0023101,99610.0,99609.0,0.54533753]
[1733638648283,0.0023101,99610.0,99609.0,0.55033753]
[1733638649138,0.0023101,99610.0,99609.0,0.54133753]
[1733638649593,0.0023101,99610.0,99609.0,0.55033753]
[1733638657617,0.0023101,99610.0,99609.0,0.55339543]
[1733638658703,0.0023101,99610.0,99609.0,0.57297439]
[1733638665291,1e-08,99610.0,99609.0,0.57297439]
[1733638672895,0.00173261,99610.0,99609.0,0.57297439]
[1733638676983,0.0017324,99620.0,99619.0,0.41076854]
[1733638677221,0.0018482,99620.0,99619.0,0.54814399]
[1733638677876,0.0018482,99620.0,99619.0,0.47514399]
[1733638679127,0.0018482,99620.0,99619.0,0.48314399]
[1733638679574,0.0018482,99620.0,99619.0,0.48614399]
[1733638682409,0.0018482,99620.0,99619.0,0.56933374]
[1733638683470,0.0817482,99620.0,99619.0,0.49633374]
[1733638683865,0.0817482,99620.0,99619.0,0.46634658]
[1733638684088,0.0817482,99620.0,99619.0,0.12857804]
[1733638684939,0.0817482,99620.0,99619.0,0.12557804]
[1733638685142,0.0817482,99620.0,99619.0,0.11757804]
[1733638685522,0.0817482,99620.0,99619.0,0.12557804]
[1733638685934,0.0817482,99620.0,99619.0,0.11757804]
[1733638686141,0.0817482,99620.0,99619.0,0.12257804]
[1733638686574,0.0817482,99620.0,99619.0,0.01754853]
[1733638686815,0.0817482,99620.0,99619.0,0.24703675]
[1733638687053,0.0817482,99620.0,99619.0,0.01754853]
[1733638687502,0.0817482,99620.0,99619.0,0.19795541]
[1733638687975,0.0817482,99620.0,99619.0,0.01754853]
[1733638688416,0.0817482,99620.0,99619.0,0.02054853]
[1733638688611,0.0817482,99620.0,99619.0,0.01754853]
[1733638689119,0.0817482,99620.0,99619.0,0.01854853]
[1733638689541,0.0817482,99620.0,99619.0,0.15380807]
[1733638691208,0.0817482,99620.0,99619.0,0.14361832]
[1733638691439,0.0817482,99620.0,99619.0,0.00835878]
[1733638691440,0.1287482,99620.0,99619.0,0.00835878]
[1733638691681,0.13000309,99620.0,99619.0,0.00835878]
[1733638692290,0.13000309,99620.0,99619.0,0.001]
[1733638692715,0.140543,99614.0,99610.0,0.0017326]
[1733638692977,0.0818,99612.0,99610.0,0.0017326]
[1733638693187,0.08305497,99611.0,99610.0,0.0017326]
[1733638694723,0.08305497,99611.0,99610.0,0.0014796]
[1733638694943,0.08305497,99611.0,99610.0,0.0044796]
[1733638695147,0.08305497,99611.0,99610.0,0.0014796]
[1733638695339,0.08305497,99611.0,99610.0,0.0024796]
[1733638695556,0.08305497,99611.0,99610.0,0.0064796]
[1733638695774,0.08305497,99611.0,99610.0,0.0054796]
[1733638696205,0.13215497,99611.0,99610.0,0.0014796]
[1733638697694,0.13215497,99611.0,99610.0,0.0024796]
[1733638697900,0.13215497,99611.0,99610.0,0.0014796]
[1733638698317,0.13215497,99611.0,99610.0,0.0024796]
[1733638698539,0.13415497,99611.0,99610.0,0.0024796]
[1733638698752,0.13415497,99611.0,99610.0,0.0014796]
[1733638698962,0.13315497,99611.0,99610.0,0.0014796]
[1733638699369,0.13515497,99611.0,99610.0,0.0014796]
[1733638705132,0.0848,99611.0,99610.0,0.0014796]
[1733638705352,0.003,99611.0,99610.0,0.10150911]
[1733638705556,0.003,99611.0,99610.0,0.10889728]
[1733638705774,0.002,99611.0,99610.0,0.10889728]
[1733638705972,0.0018482,99620.0,99618.0,0.140536]
[1733638706145,0.0018482,99620.0,99619.0,0.10002951]
[1733638706350,0.0018482,99620.0,99619.0,0.10740994]
[1733638707865,0.0018482,99620.0,99619.0,0.11240994]
[1733638708750,0.0018482,99620.0,99619.0,0.10740994]
[1733638709151,0.0018482,99620.0,99619.0,0.10940994]
[1733638709563,0.0018482,99620.0,99619.0,0.11640994]
[1733638716065,0.0018482,99620.0,99619.0,0.01638043]
[1733638716301,0.0821482,99620.0,99619.0,0.01638043]
[1733638716524,0.0821482,99620.0,99619.0,0.009]
[1733638716525,0.08340308,99620.0,99619.0,0.009]
[1733638720372,0.0821482,99620.0,99619.0,0.009]
[1733638720605,0.0018482,99620.0,99619.0,0.009]
[1733638720817,0.0018482,99620.0,99619.0,0.0163738]
[1733638721022,0.00310308,99620.0,99619.0,0.009]
[1733638721255,0.0018482,99620.0,99619.0,0.009]
[1733638721461,0.00310308,99620.0,99619.0,0.009]
[1733638722080,0.0018482,99620.0,99619.0,0.009]
[1733638722404,0.00310308,99620.0,99619.0,0.009]
[1733638723074,0.0018482,99620.0,99619.0,0.009]
[1733638723494,0.0018482,99620.0,99619.0,0.0163738]
[1733638732391,0.0018482,99620.0,99619.0,0.10644361]
[1733638733465,0.0018482,99620.0,99619.0,0.0163738]
[1733638733920,0.0018482,99620.0,99619.0,0.10644597]
[1733638734348,0.0018482,99620.0,99619.0,0.0163738]
[1733638734763,0.0018482,99620.0,99619.0,0.1064447]
[1733638736369,0.0018482,99620.0,99619.0,0.0163738]
[1733638736578,0.0018482,99620.0,99619.0,0.10644254]
[1733638737185,0.0018482,99620.0,99619.0,0.25150642]
[1733638737416,0.0018482,99620.0,99619.0,0.11640331]
[1733638740049,0.0018482,99620.0,99619.0,0.2965408]
[1733638740249,0.0018482,99620.0,99619.0,0.11640331]
[1733638742304,0.0018482,99620.0,99619.0,0.20646405]
[1733638742506,0.0018482,99620.0,99619.0,0.11640331]
[1733638743139,0.0018482,99620.0,99619.0,0.25149195]
[1733638743550,0.0018482,99620.0,99619.0,0.11640331]
[1733638744499,0.0018482,99620.0,99619.0,0.2965408]
[1733638744706,0.0018482,99620.0,99619.0,0.11640331]
[1733638744979,0.0018482,99620.0,99619.0,0.29659427]
[1733638745404,0.0018482,99620.0,99619.0,0.11640331]
[1733638746245,0.0018482,99620.0,99619.0,0.34157517]
[1733638746414,0.0018482,99620.0,99619.0,0.11640331]
[1733638757101,0.0018482,99620.0,99619.0,0.31363685]
[1733638757535,0.0018482,99620.0,99619.0,0.58425047]
[1733638757760,0.0018482,99620.0,99619.0,0.31363685]
[1733638760555,0.0018482,99620.0,99619.0,0.58417208]
[1733638760836,0.0018482,99620.0,99619.0,0.58417101]
[1733638761037,0.0018482,99620.0,99619.0,0.31363685]
[1733638761469,0.0018482,99620.0,99619.0,0.58415583]
[1733638762024,0.0018482,99620.0,99619.0,0.31363685]
[1733638762257,0.0018482,99620.0,99619.0,0.39133685]
[1733638762468,0.0018482,99620.0,99619.0,0.51173685]
[1733638762684,0.0018482,99620.0,99619.0,0.54171789]
[1733638763517,0.0018482,99620.0,99619.0,0.93906662]
[1733638764010,0.0018482,99620.0,99619.0,0.53471789]
[1733638764418,0.0018482,99620.0,99619.0,0.53271789]
[1733638764625,0.0018482,99620.0,99619.0,0.54071789]
[1733638764831,0.0018482,99620.0,99619.0,0.54371789]
[1733638769385,0.0018482,99620.0,99619.0,0.94288375]
[1733638770017,0.0018482,99620.0,99619.0,0.54371789]
[1733638772511,0.0018482,99620.0,99619.0,0.94284958]
[1733638773468,0.0018482,99620.0,99619.0,0.942854]
[1733638774721,0.0018482,99620.0,99619.0,0.54371789]
[1733638775395,0.0018482,99620.0,99619.0,0.94283828]
[1733638775899,0.0018482,99620.0,99619.0,0.94284722]
[1733638776859,0.0018482,99620.0,99619.0,0.54371789]
[1733638777899,0.0018482,99620.0,99619.0,0.94284726]
[1733638778102,0.0018482,99620.0,99619.0,0.54371789]
[1733638782415,0.0018482,99620.0,99619.0,0.53571789]
[1733638782628,0.0018482,99620.0,99619.0,0.54371789]
[1733638783068,0.0018482,99620.0,99619.0,0.54071789]
[1733638783474,0.0018482,99620.0,99619.0,0.54271789]
[1733638783697,2e-07,99620.0,99619.0,0.54271789]
[1733638784024,2e-07,99620.0,99619.0,0.53271789]
[1733638784249,2e-07,99620.0,99619.0,0.54671789]
[1733638784688,2e-07,99620.0,99619.0,0.53271789]
[1733638785024,2e-07,99620.0,99619.0,0.54771789]
[1733638785414,6e-07,99630.0,99629.0,0.38775454]
[1733638785653,2e-07,99640.0,99639.0,0.41074054]
[1733638785887,0.0806,99658.0,99644.0,0.023]
[1733638786088,0.0806,99658.0,99649.0,0.04723354]
[1733638786323,0.0049008,99668.0,99649.0,0.33425126]
[1733638786522,0.0806,99665.0,99649.0,0.33425126]
[1733638786973,0.0806,99665.0,99649.0,0.30427022]
[1733638787378,0.0019067,99650.0,99649.0,0.30427022]
[1733638787603,0.0019067,99650.0,99649.0,0.33419414]
[1733638788214,0.0019067,99650.0,99649.0,0.33519386]
[1733638788457,0.0019067,99650.0,99649.0,0.30527022]
[1733638788672,0.0019067,99650.0,99649.0,0.31227022]
[1733638789129,0.0019067,99650.0,99649.0,0.38527022]
[1733638789332,0.0049008,99668.0,99659.0,0.41071254]
[1733638789532,0.0049008,99668.0,99659.0,0.51074205]
[1733638789890,0.0049008,99668.0,99659.0,0.51774922]
[1733638790306,0.43824694,99660.0,99659.0,0.91434704]
[1733638790919,0.43824694,99660.0,99659.0,0.64464922]
[1733638791122,0.43824694,99660.0,99659.0,0.68754107]
[1733638791300,0.43824694,99660.0,99659.0,0.67854107]
[1733638791532,0.43824694,99660.0,99659.0,0.65764922]
[1733638791715,0.43824694,99660.0,99659.0,0.65364922]
[1733638791944,0.43824694,99660.0,99659.0,0.64464922]
[1733638792299,0.43824694,99660.0,99659.0,0.65364922]
[1733638792501,0.43824694,99660.0,99659.0,0.91411969]
[1733638792702,0.43824694,99660.0,99659.0,0.92311997]
[1733638792904,0.43824694,99660.0,99659.0,0.95288762]
[1733638793115,0.43824694,99660.0,99659.0,0.95688762]
[1733638793564,0.43824694,99660.0,99659.0,0.68341687]
[1733638793975,0.43824694,99660.0,99659.0,0.68841687]
[1733638796968,0.43824694,99660.0,99659.0,0.60931687]
[1733638799316,0.43824694,99660.0,99659.0,0.58971774]
[1733638799523,0.43824694,99660.0,99659.0,0.58949055]
[1733638800449,0.43911324,99660.0,99659.0,0.58949055]
[1733638801949,0.43911324,99660.0,99659.0,0.59254098]
[1733638803211,0.43911324,99660.0,99659.0,0.54169055]
[1733638804308,0.43911324,99660.0,99659.0,0.62359055]
[1733638806737,0.43911324,99660.0,99659.0,0.54169055]
[1733638816364,0.43911324,99660.0,99659.0,0.57159525]
[1733638816835,0.16741382,99660.0,99659.0,0.69369525]
[1733638817062,0.12410082,99660.0,99659.0,0.66379055]
[1733638817266,0.12410082,99660.0,99659.0,0.69262808]
[1733638817468,0.10103275,99660.0,99659.0,0.72347333]
[1733638817668,0.02076075,99660.0,99659.0,0.75338973]
[1733638817865,0.01276075,99660.0,99659.0,0.75338973]
[1733638818107,0.01276075,99660.0,99659.0,0.74438973]
[1733638818318,0.01276075,99660.0,99659.0,0.73938973]
[1733638818529,7.5e-07,99660.0,99659.0,0.73938973]
[1733638818698,7.5e-07,99660.0,99659.0,0.71354448]
[1733638819097,7.5e-07,99660.0,99659.0,0.70954448]
[1733638819295,7.5e-07,99660.0,99659.0,0.71054448]
[1733638820182,0.0008659,99680.0,99675.0,0.04977281]
[1733638820387,0.0008659,99680.0,99679.0,0.61724854]
[1733638820587,0.0008659,99680.0,99679.0,0.43771305]
[1733638820874,0.0008659,99680.0,99679.0,0.46767481]
[1733638821039,0.0008659,99680.0,99679.0,0.47462813]
[1733638821683,0.00092352,99680.0,99679.0,0.53340094]
[1733638822642,0.00092352,99680.0,99679.0,0.53540094]
[1733638824865,0.00092352,99680.0,99679.0,0.57833973]
[1733638825085,5.2e-07,99680.0,99679.0,0.84764297]
[1733638825531,5.2e-07,99680.0,99679.0,0.57833973]
[1733638825985,5.2e-07,99680.0,99679.0,0.58848541]
[1733638826688,5.2e-07,99680.0,99679.0,0.858014]
[1733638826918,5.2e-07,99680.0,99679.0,0.58848541]
[1733638827188,0.0804,99699.0,99698.0,0.18765754]
[1733638827385,0.0804,99699.0,99698.0,0.61735244]
[1733638827618,0.0804,99699.0,99698.0,0.44463507]
[1733638827844,0.0804,99699.0,99698.0,0.66921681]
[1733638827979,0.0804,99699.0,99698.0,0.44463507]
[1733638828456,0.0804,99699.0,99698.0,0.67021681]
[1733638828820,0.0804,99699.0,99698.0,0.6703462]
[1733638829257,0.0804,99699.0,99698.0,0.67034492]
[1733638829464,0.0804,99699.0,99698.0,0.44563507]
[1733638831279,0.0804,99699.0,99698.0,0.45584821]
[1733638831933,0.1302,99699.0,99698.0,0.40861467]
[1733638832807,0.1302,99699.0,99698.0,0.58856047]
[1733638833243,0.1302,99699.0,99698.0,0.40861467]
[1733638833686,0.1302,99699.0,99698.0,0.58758107]
[1733638833887,0.1302,99699.0,99698.0,0.58858107]
[1733638834101,0.1302,99699.0,99698.0,0.54359428]
[1733638834748,0.1302,99699.0,99698.0,0.45584821]
[1733638835171,0.00125379,99707.0,99698.0,0.40861467]
[1733638835434,0.00022719,99708.0,99698.0,0.40861467]
[1733638835435,0.0463,99708.0,99699.0,0.42999591]
[1733638835709,0.0463,99708.0,99699.0,0.4857493]
[1733638835940,0.0783,99703.0,99699.0,0.3057829]
[1733638837028,0.0783,99703.0,99699.0,0.3117829]
[1733638837306,0.0783,99703.0,99699.0,0.3057829]
[1733638837510,0.0783,99703.0,99699.0,0.3127829]
[1733638837925,0.0783,99703.0,99699.0,0.3147829]
[1733638840469,0.0783,99703.0,99699.0,0.5397247]
[1733638841110,0.0783,99703.0,99699.0,0.3147829]
[1733638841528,0.0783,99703.0,99699.0,0.5397201]
[1733638841677,0.0783,99703.0,99699.0,0.3147829]
[1733638842910,0.0017322,99710.0,99699.0,0.3147829]
[1733638847819,0.0017322,99710.0,99699.0,0.63197701]
[1733638848020,0.0017322,99710.0,99699.0,0.63191151]
[1733638851573,0.0783,99702.0,99699.0,0.63191151]
[1733638852497,0.0783,99702.0,99699.0,0.85686385]
[1733638852688,0.0783,99702.0,99699.0,0.63387384]
[1733638855342,0.0017322,99710.0,99699.0,0.63387384]
[1733638855559,0.0821,99708.0,99699.0,0.63387384]
[1733638857670,0.00125371,99707.0,99699.0,0.63387384]
[1733638862218,0.00125371,99707.0,99699.0,0.90381793]
[1733638863230,0.00125371,99707.0,99699.0,0.63387384]
[1733638863501,0.0014809,99707.0,99699.0,0.9043179]
[1733638863752,0.0772654,99700.0,99699.0,0.63387384]
[1733638865271,0.0772654,99700.0,99699.0,0.5866403]
[1733638869140,0.07749259,99700.0,99699.0,0.48661079]
[1733638869360,0.07749259,99700.0,99699.0,0.66694151]
[1733638869574,0.07749259,99700.0,99699.0,0.62186663]
[1733638870010,0.07749259,99700.0,99699.0,0.30277569]
[1733638870216,0.07749259,99700.0,99699.0,0.16751985]
[1733638871213,0.07749259,99700.0,99699.0,0.25766234]
[1733638871417,0.07749259,99700.0,99699.0,0.10766234]
[1733638871563,0.12339259,99700.0,99699.0,0.10766234]
[1733638871800,0.12339259,99700.0,99699.0,0.01751985]
[1733638872199,0.12339259,99700.0,99699.0,0.01051985]
[1733638872410,0.12339259,99700.0,99699.0,0.00851985]
[1733638872649,0.12339259,99700.0,99690.0,0.18033072]
[1733638872650,0.14065519,99695.0,99694.0,0.09014249]
[1733638872860,0.14065519,99695.0,99689.0,0.18033072]
[1733638872861,0.00022719,99693.0,99689.0,0.09014249]
[1733638873064,0.00022719,99693.0,99686.0,0.13525584]
[1733638873065,0.00148115,99693.0,99688.0,0.09014249]
[1733638874110,0.00148115,99693.0,99687.0,0.09014249]
[1733638874338,0.00148115,99693.0,99688.0,0.001]
[1733638875213,0.00022719,99693.0,99688.0,0.141437]
[1733638875628,0.00022719,99693.0,99688.0,0.140437]
[1733638875835,0.00022719,99689.0,99688.0,0.140437]
[1733638876231,0.00022719,99689.0,99688.0,0.14897068]
[1733638876472,0.0764,99694.0,99693.0,0.140431]
[1733638877301,0.0764,99694.0,99693.0,0.14896468]
[1733638877718,0.0764,99694.0,99693.0,0.14996468]
[1733638877938,0.00022719,99699.0,99693.0,0.14996468]
[1733638878211,0.00211929,99700.0,99698.0,0.09004858]
[1733638878212,0.0008654,99700.0,99698.0,0.09004858]
[1733638878422,0.0008654,99700.0,99699.0,0.52557936]
[1733638878635,0.0008654,99700.0,99699.0,0.90293551]
[1733638878838,0.0008654,99700.0,99699.0,0.91145669]
[1733638879624,0.0008654,99700.0,99699.0,0.91432089]
[1733638881301,0.0008654,99700.0,99699.0,0.73427815]
[1733638882129,0.0008654,99700.0,99699.0,0.74452255]
[1733638883725,0.0008654,99700.0,99699.0,0.92456529]
[1733638884196,0.0008654,99700.0,99699.0,0.74452255]
[1733638884621,0.0008654,99700.0,99699.0,0.79175609]
[1733638884831,0.0008654,99700.0,99699.0,0.79176179]
[1733638885631,0.0008654,99700.0,99699.0,0.78876179]
[1733638885856,0.0008654,99700.0,99699.0,0.79376179]
[1733638885982,0.0008654,99700.0,99699.0,0.78876179]
[1733638886392,0.0008654,99700.0,99699.0,0.79476179]
[1733638886603,0.0008654,99700.0,99699.0,0.78976179]
[1733638887023,0.0008654,99700.0,99699.0,0.79576179]
[1733638887853,0.0008654,99700.0,99699.0,0.79476179]
[1733638888109,0.0008654,99700.0,99699.0,0.79576179]
[1733638888503,0.0008654,99700.0,99699.0,0.78876179]
[1733638888904,0.0008654,99700.0,99699.0,0.79572479]
[1733638889108,0.0008654,99700.0,99699.0,0.79072479]
[1733638889337,0.0008654,99700.0,99699.0,0.74350254]
[1733638889535,0.0008654,99700.0,99699.0,0.75050254]
[1733638889994,0.0008654,99700.0,99699.0,0.97555017]
[1733638890191,0.0008654,99700.0,99699.0,0.75050254]
[1733638890392,0.0008654,99700.0,99699.0,0.9305497]
[1733638890640,0.0008654,99700.0,99699.0,0.75050254]
[1733638891273,0.0008654,99700.0,99699.0,0.93054691]
[1733638891703,0.0008654,99700.0,99699.0,0.75050254]
[1733638891948,0.0008654,99700.0,99699.0,0.74025814]
[1733638891949,0.00109259,99700.0,99699.0,0.74025814]
[1733638892155,0.00109259,99700.0,99699.0,0.4025933]
[1733638892589,0.00109259,99700.0,99699.0,0.35758517]
[1733638892796,0.00109259,99700.0,99699.0,0.26755069]
[1733638893356,0.00109259,99700.0,99699.0,0.35758942]
[1733638893561,0.00109259,99700.0,99699.0,0.25755991]
[1733638893794,0.00109259,99700.0,99699.0,0.16752118]
[1733638893795,0.07689259,99700.0,99699.0,0.16752118]
[1733638893989,0.21731359,99700.0,99699.0,0.16752118]
[1733638894195,0.21731359,99700.0,99699.0,0.01752118]
[1733638897130,0.07689259,99700.0,99699.0,0.01752118]
[1733638897336,0.21731359,99700.0,99699.0,0.01752118]
[1733638898925,0.21731359,99700.0,99699.0,0.009]
[1733638899874,0.26411359,99700.0,99699.0,0.009]
[1733638901275,0.26411359,99700.0,99699.0,0.007]
[1733638901860,0.26411359,99700.0,99698.0,0.02]
[1733638902072,0.00125397,99699.0,99698.0,0.02]
[1733638902472,0.08155397,99699.0,99698.0,0.02]
[1733638904070,0.08178116,99699.0,99698.0,0.02]
[1733638909082,0.08052719,99699.0,99698.0,0.02]
[1733638909281,0.08178119,99699.0,99698.0,0.02]
[1733638918266,0.00148119,99699.0,99698.0,0.02]
[1733638919439,0.00022719,99699.0,99698.0,0.02853562]
[1733638924252,0.00022719,99699.0,99698.0,0.02953562]
[1733638925280,0.00022719,99699.0,99698.0,0.03956753]
[1733638925435,0.00022719,99699.0,99698.0,0.02953562]
[1733638925640,0.00148103,99699.0,99698.0,0.02953562]
[1733638932187,0.00022719,99699.0,99698.0,0.02953562]
[1733638933190,0.00148102,99699.0,99698.0,0.02853562]
[1733638933473,0.00148102,99699.0,99698.0,0.02953562]
[1733638937257,0.00148102,99699.0,99698.0,0.11965891]
[1733638937653,0.00148102,99699.0,99698.0,0.02953562]
[1733638937917,0.00148102,99699.0,99698.0,0.11965891]
[1733638938585,0.00148102,99699.0,99698.0,0.02953562]
[1733638943187,0.00148102,99699.0,99698.0,0.01955383]
[1733638943591,0.00022719,99699.0,99698.0,0.01955383]
[1733638943831,0.00148108,99699.0,99698.0,0.01955383]
[1733638947633,0.00022719,99699.0,99698.0,0.01955383]
[1733638949596,0.00022719,99699.0,99698.0,0.10967712]
[1733638950039,0.00022719,99699.0,99698.0,0.10972685]
[1733638950480,0.00148104,99699.0,99698.0,0.10972685]
[1733638951104,0.00022719,99699.0,99698.0,0.01955383]
[1733638951323,0.00022719,99699.0,99698.0,0.25484287]
[1733638951450,0.00022719,99699.0,99698.0,0.45244509]
[1733638951669,0.00022719,99699.0,99698.0,0.34762938]
[1733638951870,0.00022719,99699.0,99698.0,0.68049113]
[1733638952243,0.00022719,99699.0,99698.0,0.50014509]
[1733638952507,0.0008654,99700.0,99698.0,0.34762175]
[1733638952710,0.0008654,99700.0,99699.0,0.8512468]
[1733638952910,0.0008654,99700.0,99699.0,0.85951893]
[1733638954069,0.0008654,99700.0,99699.0,0.86251893]
[1733638954300,0.0008654,99700.0,99699.0,0.85951893]
[1733638955761,0.0008654,99700.0,99699.0,0.86351893]
[1733638955966,0.0008654,99700.0,99699.0,0.85951893]
[1733638956441,0.0008654,99700.0,99699.0,0.86451893]
[1733638956665,0.0008654,99700.0,99699.0,0.85951893]
[1733638956880,0.0008654,99700.0,99699.0,0.86551893]
[1733638958697,0.0008654,99700.0,99699.0,0.86651893]
[1733638959395,0.0008654,99700.0,99699.0,0.86626008]
[1733638960950,0.0008654,99700.0,99699.0,0.91576008]
[1733638961743,0.0008654,99700.0,99699.0,0.90876008]
[1733638961976,0.0008654,99700.0,99699.0,0.90976008]
[1733638962091,0.0008654,99700.0,99699.0,0.91676008]
[1733638962300,0.0008654,99700.0,99699.0,0.91576008]
[1733638962545,0.0008654,99700.0,99699.0,0.90876008]
[1733638962758,0.0008654,99700.0,99699.0,0.91776008]
[1733638964148,0.0008654,99700.0,99699.0,0.91752101]
[1733638967530,0.0008654,99700.0,99699.0,1.18752254]
[1733638967768,0.0008654,99700.0,99699.0,0.91752101]
[1733638968183,0.0008654,99700.0,99699.0,1.18752254]
[1733638968596,0.0008654,99700.0,99699.0,0.91752101]
[1733638969233,0.0008654,99700.0,99699.0,0.91734152]
[1733638970489,0.0008654,99700.0,99699.0,1.1873072]
[1733638970704,0.0008654,99700.0,99699.0,0.91734152]
[1733638973926,0.0008654,99700.0,99699.0,0.91720845]
[1733638978647,0.0008654,99700.0,99699.0,0.9171479]
[1733638979016,0.0008654,99700.0,99699.0,0.93762269]
[1733638982213,0.0017322,99710.0,99709.0,0.41041435]
[1733638982429,0.0017322,99710.0,99709.0,1.24264291]
[1733638982648,0.0762,99738.0,99737.0,0.140369]
[1733638982863,0.0762,99738.0,99737.0,0.24863822]
[1733638983509,0.07677652,99738.0,99737.0,0.24863822]
[1733638983942,0.07677652,99738.0,99737.0,0.10826922]
[1733638986296,0.07648586,99738.0,99737.0,0.10826922]
[1733638987288,0.07648586,99738.0,99737.0,0.11326922]
[1733638988277,0.00057652,99738.0,99737.0,0.12335959]
[1733638988856,0.00057652,99738.0,99737.0,0.12435959]
[1733638994051,0.00057652,99738.0,99737.0,0.27435959]
[1733638994184,0.00057652,99738.0,99737.0,0.78830584]
[1733638994381,0.00057652,99738.0,99737.0,0.65342997]
[1733638994611,0.00057652,99738.0,99737.0,0.83326447]
[1733638995219,0.00057652,99738.0,99737.0,0.65342997]
[1733638995438,0.00057652,99738.0,99737.0,0.83326447]
[1733638996321,0.00057652,99738.0,99737.0,0.65342997]
[1733638996521,0.00057652,99738.0,99737.0,0.83326447]
[1733638997186,0.00057652,99738.0,99737.0,0.65342997]
[1733638997398,0.00057652,99738.0,99737.0,0.83326447]
[1733638997600,0.00057652,99738.0,99737.0,0.83426447]
[1733638998272,0.00057652,99738.0,99737.0,0.65442997]
[1733638998613,0.00057652,99738.0,99737.0,0.83326447]
[1733638998830,0.00057652,99738.0,99737.0,0.83926447]
[1733638999175,0.00057652,99738.0,99737.0,0.65942997]
[1733639000976,0.00057652,99738.0,99737.0,0.65945354]
[1733639005747,0.00057652,99738.0,99737.0,0.65943939]
[1733639006536,0.00057652,99738.0,99737.0,0.65243939]
[1733639006893,0.00057652,99738.0,99737.0,0.65343939]
[1733639007309,0.00057652,99738.0,99737.0,0.65243939]
[1733639007637,0.00057652,99738.0,99737.0,0.87918183]
[1733639007845,0.0008661,99740.0,99739.0,0.15]
[1733639008048,0.00103891,99740.0,99739.0,0.65867577]
[1733639008261,0.00103891,99740.0,99739.0,0.66690145]
[1733639008459,0.00103891,99740.0,99739.0,0.81710912]
[1733639008669,0.00103891,99740.0,99739.0,0.63733499]
[1733639009075,0.00103891,99740.0,99739.0,0.64333499]
[1733639009312,0.00103891,99740.0,99739.0,0.64328881]
[1733639009517,0.00103891,99740.0,99739.0,0.82305774]
[1733639009739,0.00103891,99740.0,99739.0,0.82405774]
[1733639010467,0.00103891,99740.0,99739.0,0.82404708]
[1733639010650,0.00103891,99740.0,99739.0,0.82405039]
[1733639011680,0.00103891,99740.0,99739.0,0.64428881]
[1733639011853,0.00103891,99740.0,99739.0,0.82404731]
[1733639012681,0.00103891,99740.0,99739.0,0.64428881]
[1733639012836,0.00103891,99740.0,99739.0,0.8240458]
[1733639013063,0.00103891,99740.0,99739.0,0.64428881]
[1733639013462,0.00103891,99740.0,99739.0,0.77910813]
[1733639013661,0.00103891,99740.0,99739.0,0.44731277]
[1733639013875,0.00103891,99740.0,99739.0,0.31248873]
[1733639014255,0.00103891,99740.0,99739.0,0.44731277]
[1733639016736,0.00103891,99740.0,99739.0,0.77916472]
[1733639017594,0.00103891,99740.0,99739.0,0.64434068]
[1733639018291,0.00103891,99740.0,99739.0,0.4023952]
[1733639018292,0.0782661,99740.0,99739.0,0.4023952]
[1733639018563,0.0782661,99740.0,99739.0,0.26525519]
[1733639019232,0.07951937,99740.0,99739.0,0.26525519]
[1733639021161,0.0782661,99740.0,99739.0,0.26525519]
[1733639021803,0.0782661,99740.0,99739.0,0.26485406]
[1733639023934,0.0782661,99740.0,99739.0,0.25885406]
[1733639024792,0.0782661,99740.0,99739.0,0.25785406]
[1733639025250,0.0782661,99740.0,99739.0,0.26085406]
[1733639025468,0.0782661,99740.0,99739.0,0.25785406]
[1733639025688,0.0782661,99740.0,99739.0,0.26085406]
[1733639027448,0.07951937,99740.0,99739.0,0.26085406]
[1733639028303,0.07951937,99740.0,99739.0,0.35076053]
[1733639028719,0.07951937,99740.0,99739.0,0.25785406]
[1733639029130,0.07951937,99740.0,99739.0,0.25985406]
[1733639030146,0.07909477,99740.0,99739.0,0.25985406]
[1733639031009,0.07909477,99740.0,99739.0,0.34992383]
[1733639031217,0.07909477,99740.0,99739.0,0.25985406]
[1733639035023,0.07909477,99740.0,99739.0,0.34992383]
[1733639036690,0.07909477,99740.0,99739.0,0.25985406]
[1733639036895,0.0778415,99740.0,99739.0,0.25985406]
[1733639037506,0.0778415,99740.0,99739.0,0.3499208]
[1733639037711,0.07909477,99740.0,99739.0,0.3499208]
[1733639038099,0.07909477,99740.0,99739.0,0.25985406]
[1733639039572,0.07909477,99740.0,99739.0,0.34992238]
[1733639041134,0.00061431,99740.0,99739.0,0.34992238]
[1733639041364,0.00061431,99740.0,99739.0,0.59231554]
[1733639041962,0.00061431,99740.0,99739.0,0.73268154]
[1733639042171,0.00061431,99740.0,99739.0,0.59231554]
[1733639045771,0.00061431,99740.0,99739.0,0.73268154]
[1733639045976,0.00061431,99740.0,99739.0,0.95786069]
[1733639046145,0.00061431,99740.0,99739.0,0.73268154]
[1733639050238,0.00061431,99740.0,99739.0,0.77991508]
[1733639050449,0.00061431,99740.0,99739.0,0.86221508]
[1733639051389,0.00061431,99740.0,99739.0,0.86021508]
[1733639051749,0.00061431,99740.0,99739.0,0.86321508]
[1733639052357,0.00061431,99740.0,99739.0,0.86322049]
[1733639054514,0.00061431,99740.0,99739.0,0.86022049]
[1733639054736,0.00061431,99740.0,99739.0,0.86522049]
[1733639055136,0.00061431,99740.0,99739.0,0.86122049]
[1733639055368,0.00061431,99740.0,99739.0,0.86722049]